[Event "EICC 2025"]
[Site "Eforie-Nord"]
[Date "2025.03.15"]
[Round "1.37"]
[White "Uritsky, Yonathan"]
[Black "Abasov, Nijat"]
[Result "0-1"]
[Annotator "TA"]
[ECO "A30"]
[WhiteElo "2285"]
[BlackElo "2612"]
[PlyCount "66"]
[EventDate "2025.03.14"]
[EventType "swiss"]
[EventCountry "ROU"]
[SourceTitle "playchess.com"]
[Source "ChessBase"]
[SourceQuality "1"]
[TimeControl "40/5400+30:1800+30"]

{[%evp 11,66,-5,4,-10,-27,-20,-25,-36,-26,-34,-36,-46,-27,-38,-30,-80,-80,-77,-67,-73,-73,-75,-93,-91,-73,-121,-112,-120,-129,-138,-134,-149,-139,-220,-205,-204,-200,-207,-184,-251,-245,-276,-274,-283,-275,-286,-286,-281,-260,-255,-254,-295,-293,-273,-260,-291,-280]} 1. Nf3 {[%emt 0:00:04]} Nf6 {[%emt 0:00:12]} 2. b3 {[%emt 0:00:46]} g6 {[%emt 0:00:07]} 3. Bb2 {[%emt 0:00:25]} Bg7 {[%emt 0:00:08]} 4. e3 {[%emt 0:00:34]} c5 {[%emt 0:00:42]} 5. c4 {[%emt 0:01:36]} O-O {[%emt 0:00:52]} 6. Be2 {[%emt 0:01:23]} d5 {[%emt 0:01:37]} 7. d4 {[%emt 0:05:18] A30: Symmetrical English: Double Fianchetto and Hedgehog.} cxd4 {[%emt 0:01:33]} 8. Nxd4 {[%emt 0:04:33]} dxc4 {[%emt 0:03:11]} 9. Bxc4 {[%emt 0:03:52] Black has an edge.} e5 {[%emt 0:00:28]} 10. Nf3 {[%emt 0:04:57]} Qxd1+ {[%emt 0:00:14]} 11. Kxd1 {[%emt 0:00:02]} Nc6 {[%emt 0:04:43]} 12. Nbd2 $146 {[%emt 0:04:02][%cal Od1e2] Prevents Ne4.} (12. Ke2 e4 13. Nd4 Ne5 14. h3 a6 15. a4 b6 16. Nd2 Bb7 17. Rhd1 Nfd7 18. Ba3 {½-½ Bravo Gonzalez,R (2023)-Ramirez,J ESP-VEN email 2013 [11]}) 12... e4 {[%emt 0:01:08]} 13. Ng5 {[%emt 0:02:26]} (13. Nd4 $11 {keeps the balance.}) 13... h6 $17 {[%emt 0:02:13] White is now going downhill.} 14. Nxf7 {[%emt 0:08:58]} Rxf7 {[%emt 0:01:02]} 15. Rc1 {[%emt 0:05:02][%cal Ob2f6]} Bg4+ {[%emt 0:20:47]} 16. Ke1 {[%emt 0:03:08][%cal Oh2h3] [#]} Re8 $1 {[%emt 0:02:11] ...Be6 would now be deadly.} 17. Bxf7+ {[%emt 0:02:07]} Kxf7 {[%emt 0:00:06]} 18. Nc4 {[%emt 0:00:40]} ({White should try} 18. h3 Bd7 19. Ba3) 18... Bf8 $36 {[%emt 0:03:40][%mdl 2048] Black is really pushing.} 19. h3 {[%emt 0:00:28]} Be6 {[%emt 0:03:20]} 20. Ke2 {[%emt 0:03:04]} Nd7 {[%emt 0:00:21]} 21. Bd4 {[%emt 0:09:07]} a5 {[%emt 0:10:33]} 22. a4 {[%emt 0:05:30]} (22. Rhd1 $17) 22... Nxd4+ $19 {[%emt 0:01:30]} 23. exd4 {[%emt 0:00:07]} Bb4 {[%emt 0:00:06]} 24. Nd2 {[%emt 0:08:24]} Bd5 {[%emt 0:05:26]} 25. Rb1 {[%emt 0:02:31]} (25. Rc7 $142 Ke6 26. Rhc1) 25... Nb6 {[%emt 0:06:06]} 26. Rhc1 {[%emt 0:01:49]} Bc6 {[%emt 0:01:11] Black has a decisive advantage. A strong pair of Bishops.} 27. Nc4 {[%emt 0:03:26]} Nxc4 {[%emt 0:04:52]} 28. Rxc4 {[%emt 0:00:06]} Ke6 {[%emt 0:00:17]} 29. Ke3 {[%emt 0:00:54]} Kd6 {[%emt 0:00:32]} 30. Rbc1 {[%emt 0:02:33]} Re7 {[%emt 0:02:12]} 31. R4c2 {[%emt 0:02:04]} Bd5 {[%emt 0:02:17]} 32. Rb1 {[%emt 0:00:09]} Kd7 {[%emt 0:00:08] Repels Rc8} 33. h4 {[%emt 0:01:42]} Rf7 {[%emt 0:01:17] Weighted Error Value: White=0.18 (very precise) /Black=0.02 (flawless)   Mistake:       	White=4     	---        OK:         	White=9     	Black=20     Best:        	White=1     	Black=2} 0-1

[Event "EICC 2025"]
[Site "Eforie-Nord"]
[Date "2025.03.15"]
[Round "1.38"]
[White "Erdogmus, Yagiz Kaan"]
[Black "Coicev, Matei-Andrei"]
[Result "1-0"]
[Annotator "TA"]
[ECO "B40"]
[WhiteElo "2605"]
[BlackElo "2283"]
[PlyCount "87"]
[EventDate "2025.03.14"]
[EventType "swiss"]
[EventCountry "ROU"]
[SourceTitle "playchess.com"]
[Source "ChessBase"]
[SourceQuality "1"]
[TimeControl "40/5400+30:1800+30"]

{[%evp 9,87,-21,-16,-16,-21,-18,14,10,56,59,63,63,77,70,72,75,137,27,98,97,110,135,108,95,86,68,91,97,126,144,144,121,154,147,145,121,157,117,135,117,120,120,106,102,104,140,166,153,158,167,162,175,159,166,153,113,192,149,195,186,222,226,290,287,277,252,250,256,329,318,489,459,585,590,808,805,958,958,954,929]} 1. e4 {[%emt 0:00:10]} c5 {[%emt 0:00:22]} 2. Nf3 {[%emt 0:00:05]} e6 {[%emt 0:00:29]} 3. c3 {[%emt 0:00:22]} d5 {[%emt 1:31:09]} 4. e5 {[%emt 0:00:07]} d4 {[%emt 0:00:00]} 5. d3 {[%emt 0:00:33]} Nc6 {[%emt 0:00:00]} 6. g3 {[%emt 0:00:28] B40: Sicilian: 2...e6, Unusual lines.} Nge7 {[%emt 0:00:00]} 7. Bg2 {[%emt 0:01:12]} Qc7 {[%emt 0:00:00]} 8. O-O {[%emt 0:16:51] The position is equal.} Ng6 {[%emt 0:00:00]} (8... Nd5 $11) 9. Re1 $14 {[%emt 0:08:38]} Be7 {[%emt 0:00:00]} 10. h4 $146 {[%emt 0:11:27][%cal Bh2h4,Bh4h5][%mdl 32]} ({Predecessor:} 10. Na3 a6 11. h4 h6 12. cxd4 cxd4 13. h5 Ngxe5 14. Nxe5 Nxe5 15. Bf4 Bd6 16. Rc1 {1-0 Bacrot,E (2684)-Tologontegin,S (2347) Titled Tuesday intern op 21st May Late blitz 2024 (4)}) 10... h6 {[%emt 0:00:00]} 11. Na3 {[%emt 0:02:31]} dxc3 {[%emt 0:00:00]} 12. bxc3 {[%emt 0:01:48]} a6 {[%emt 0:00:00]} ({Black should try} 12... O-O) 13. Qe2 {[%emt 0:20:50]} (13. Nc4 $1 $16) 13... Bd7 {[%emt 0:00:00]} (13... b5 $11 {remains equal.}) 14. h5 $16 {[%emt 0:03:20]} Nf8 {[%emt 0:05:30][%cal Bg6f8,Bf8h7,Bh7f6,Bf6h5][%mdl 32]} 15. Nc4 $1 {[%emt 0:29:38]} Nh7 {[%emt 0:00:00]} 16. Bf4 {[%emt 0:00:00]} O-O {[%emt 0:00:00]} 17. Qe3 {[%emt 0:00:00]} Qd8 {[%emt 0:00:00]} 18. Rab1 {[%emt 0:01:30]} b5 {[%emt 0:02:00] White has space advantage and is better} 19. Nd6 {[%emt 0:00:30]} Bxd6 {[%emt 0:00:30]} 20. exd6 {[%emt 0:00:30][%csl Od6] White has a strong passed pawn} Nf6 {[%emt 0:00:30]} 21. Qxc5 {[%emt 0:00:30]} Rc8 {[%emt 0:00:30]} 22. Qa3 {[%emt 0:00:00]} Nxh5 {[%emt 0:00:00]} 23. Be3 {[%emt 0:00:00][%cal Bf4e3,Be3b6,Bb6c7][%mdl 32] Black is weak on the dark squares} (23. Qxa6 Nxf4 24. gxf4 Qf6) 23... Nf6 {[%emt 0:00:00]} 24. c4 {[%emt 0:00:00] Wards off Nd5} bxc4 {[%emt 0:00:00][%csl Oa6,Oc4] Black has weak pawns} 25. Bb6 {[%emt 0:00:00]} (25. Qxa6 $6 c3 $11) (25. dxc4 e5 26. c5 (26. Qxa6 Ra8 $18) 26... Ng4 $14) 25... Qe8 {[%emt 0:00:00]} 26. dxc4 {[%emt 0:00:00][%cal Oc4c5]} (26. Qxa6 $6 Nd5 $11) 26... a5 {[%emt 0:00:00]} 27. Qc3 {[%emt 0:00:00]} Rb8 {[%emt 0:00:00]} 28. Nd4 $36 {[%emt 0:00:00][%mdl 2048] Black is under strong pressure.} Qc8 {[%emt 0:00:00]} 29. Bc7 {[%emt 0:00:00] A strong pair of Bishops.} (29. Bxa5 Rxb1 30. Rxb1 Nxa5 31. Qxa5 Qxc4 $11) 29... Rxb1 {[%emt 0:00:00]} 30. Rxb1 {[%emt 0:00:00]} Qe8 {[%emt 0:00:00]} 31. Nb3 {[%emt 0:02:56] White is much more active.} e5 {[%emt 0:00:26]} 32. Nxa5 {[%emt 0:01:02]} Nd4 {[%emt 0:01:51] [#]} (32... Nxa5 $16 33. Rb8 (33. Bxa5 Qe6 $16) (33. Qxa5 Qe6 $16) 33... Qxb8 34. Bxb8 Rxb8) 33. Re1 $1 $18 {[%emt 0:00:18]} Qe6 {[%emt 0:00:30] [#]} 34. Nb3 $1 {[%emt 0:00:28]} (34. c5 Qxa2 35. Nc4 (35. Rxe5 Ng4 $15) 35... Ng4 $11) 34... Ne8 {[%emt 0:01:01]} 35. Nc5 {[%emt 0:00:45]} (35. Nxd4 exd4 36. Qb4 Qf5 $18) 35... Qf5 {[%emt 0:00:35]} 36. Bd8 {[%emt 0:01:00]} Nf6 {[%emt 0:01:03]} ({But not} 36... Nxd6 37. Be7 Nxc4 38. Bxf8 $18 (38. Qxc4 Bb5 $18)) 37. Bxf6 {[%emt 0:01:31]} gxf6 {[%emt 0:02:34]} 38. Nb3 {[%emt 0:00:00]} Ne6 {[%emt 0:00:00]} 39. c5 {[%emt 0:01:00][%cal Bc4c5,Bc5c6][%mdl 32]} Ng5 {[%emt 0:00:13]} (39... Rc8 {was necessary.} 40. c6 Bxc6 41. Bxc6 Ng5) 40. c6 {[%emt 0:00:00] White is clearly winning.} Be6 {[%emt 0:00:14]} 41. Nc5 {[%emt 0:29:38]} Bxa2 {[%emt 0:30:47]} 42. d7 {[%emt 0:00:34] Black must now prevent c7.} Ne6 {[%emt 0:00:41]} 43. Nxe6 {[%emt 0:00:23]} Bxe6 {[%emt 0:00:22]} 44. Rd1 {[%emt 0:00:06] Weighted Error Value: White=0.10 (very precise) /Black=0.45  Mistake:       	White=1     	Black=5      Inaccurate:     	---       	Black=2      OK:         	White=19    	Black=11     Best:        	White=1     	Black=3      Strong:       	White=3     	---} 1-0

[Event "EICC 2025"]
[Site "Eforie-Nord"]
[Date "2025.03.15"]
[Round "1.38"]
[White "Bashylina, Luisa"]
[Black "Boyer, Mahel"]
[Result "0-1"]
[Annotator "ChessBase"]
[ECO "A43"]
[WhiteElo "2175"]
[BlackElo "2529"]
[PlyCount "82"]
[EventDate "2025.03.14"]
[EventType "swiss"]
[EventCountry "ROU"]
[SourceTitle "playchess.com"]
[Source "ChessBase"]
[SourceQuality "1"]
[TimeControl "40/5400+30:1800+30"]

1. d4 {[%emt 0:00:03]} g6 {[%emt 0:00:38]} 2. c4 {[%emt 0:00:06]} Bg7 {[%emt 0:00:06]} 3. Nc3 {[%emt 0:00:08]} c5 {[%emt 0:01:20]} 4. d5 {[%emt 0:00:06]} d6 {[%emt 0:00:10]} 5. e4 {[%emt 0:00:05]} e6 {[%emt 0:01:21]} 6. Nf3 {[%emt 0:01:17]} Bxc3+ {[%emt 0:00:10]} 7. bxc3 {[%emt 0:00:07]} e5 {[%emt 0:00:02]} 8. h4 {[%emt 0:12:51]} h6 {[%emt 0:00:07]} 9. Bd3 {[%emt 0:03:22]} Qe7 {[%emt 0:00:20]} 10. Nd2 {[%emt 0:03:11]} h5 {[%emt 0:14:48]} 11. Nf1 {[%emt 0:05:57]} Nh6 {[%emt 0:01:22]} 12. f3 {[%emt 0:02:24]} Kd8 {[%emt 0:00:39]} 13. Be3 {[%emt 0:03:28]} f6 {[%emt 0:04:09]} 14. Qc2 {[%emt 0:04:37]} Kc7 {[%emt 0:00:49]} 15. O-O-O {[%emt 0:02:24]} Nd7 {[%emt 0:00:50]} 16. Nh2 {[%emt 0:02:56]} Nf7 {[%emt 0:10:43]} 17. Bf2 {[%emt 0:06:16]} Nb6 {[%emt 0:00:39]} 18. g4 {[%emt 0:09:19]} Bd7 {[%emt 0:02:36]} 19. Rde1 {[%emt 0:01:23]} g5 {[%emt 0:05:44]} 20. hxg5 {[%emt 0:17:56]} Nxg5 {[%emt 0:00:41]} 21. Qe2 {[%emt 0:02:23]} Nh3 {[%emt 0:11:19]} 22. Be3 {[%emt 0:01:29]} Nf4 {[%emt 0:01:23]} 23. Bxf4 {[%emt 0:02:50]} exf4 {[%emt 0:00:07]} 24. gxh5 {[%emt 0:01:17]} Rxh5 {[%emt 0:09:05]} 25. Ng4 {[%emt 0:02:00]} Rah8 {[%emt 0:00:28]} 26. Rxh5 {[%emt 0:08:42]} Rxh5 {[%emt 0:00:03]} 27. Kc2 {[%emt 0:01:19]} Bxg4 {[%emt 0:05:06]} 28. fxg4 {[%emt 0:00:04]} Rh4 {[%emt 0:00:31]} 29. Qf3 {[%emt 0:01:32]} Qe5 {[%emt 0:00:48]} 30. Kb3 {[%emt 0:01:59]} Qg5 {[%emt 0:00:58]} 31. Be2 {[%emt 0:01:24]} Nd7 {[%emt 0:01:34]} 32. Rf1 {[%emt 0:00:31]} Rh2 {[%emt 0:00:06]} 33. Bd1 {[%emt 0:01:04]} Ne5 {[%emt 0:00:06]} 34. Qxf4 {[%emt 0:01:01]} Rb2+ {[%emt 0:00:07]} 35. Ka4 {[%emt 0:00:35]} Rxa2+ {[%emt 0:00:11]} 36. Kb3 {[%emt 0:00:07]} Rb2+ {[%emt 0:00:06]} 37. Ka4 {[%emt 0:00:06]} Nxc4 {[%emt 0:00:51]} 38. Bb3 {[%emt 0:01:26]} b5+ {[%emt 0:00:37]} 39. Kxb5 {[%emt 0:00:05]} Nb6 {[%emt 0:01:38]} 40. Qxf6 {[%emt 0:02:02]} Rxb3+ {[%emt 0:00:04]} 41. Ka6 {[%emt 0:30:08]} Ra3+ {[%emt 0:30:04]} 0-1

[Event "EICC 2025"]
[Site "Eforie-Nord"]
[Date "2025.03.15"]
[Round "1.39"]
[White "Kobo, Ori"]
[Black "Karaca, Yigit"]
[Result "1-0"]
[Annotator "ChessBase"]
[ECO "D78"]
[WhiteElo "2525"]
[BlackElo "2174"]
[PlyCount "107"]
[EventDate "2025.03.14"]
[EventType "swiss"]
[EventCountry "ROU"]
[SourceTitle "playchess.com"]
[Source "ChessBase"]
[SourceQuality "1"]
[TimeControl "40/5400+30:1800+30"]

1. Nf3 {[%emt 0:00:08]} d5 {[%emt 0:00:41]} 2. g3 {[%emt 0:00:13]} Nf6 {[%emt 0:00:21]} 3. Bg2 {[%emt 0:00:11]} g6 {[%emt 0:00:19]} 4. c4 {[%emt 0:02:02]} c6 {[%emt 0:00:22]} 5. b3 {[%emt 0:00:16]} Bg7 {[%emt 0:01:50]} 6. Bb2 {[%emt 0:00:14]} O-O {[%emt 0:01:02]} 7. O-O {[%emt 0:00:12]} Re8 {[%emt 0:03:12]} 8. d4 {[%emt 0:01:43]} Bf5 {[%emt 0:06:36]} 9. e3 {[%emt 0:04:44]} Nbd7 {[%emt 0:03:43]} 10. Qe2 {[%emt 0:02:29]} a5 {[%emt 0:06:52]} 11. cxd5 {[%emt 0:06:22]} cxd5 {[%emt 0:01:36]} 12. Nc3 {[%emt 0:00:22]} Nb6 {[%emt 0:02:51]} 13. Rfc1 {[%emt 0:07:35]} Ne4 {[%emt 0:18:25]} 14. Nb5 {[%emt 0:04:35]} Rc8 {[%emt 0:03:33]} 15. Qe1 {[%emt 0:12:38]} Rxc1 {[%emt 0:17:16]} 16. Rxc1 {[%emt 0:01:09]} Na8 {[%emt 0:00:20]} 17. a4 {[%emt 0:08:52]} Qb6 {[%emt 0:05:55]} 18. Ba3 {[%emt 0:09:37]} Bf8 {[%emt 0:09:16]} 19. Ne5 {[%emt 0:10:59]} f6 {[%emt 0:02:21]} 20. Nd3 {[%emt 0:02:44]} Nxg3 {[%emt 0:02:03]} 21. Nf4 {[%emt 0:07:59]} Ne4 {[%emt 0:01:46]} 22. Nxd5 {[%emt 0:00:06]} Qd8 {[%emt 0:00:57]} 23. Ndc7 {[%emt 0:08:31]} Nxc7 {[%emt 0:00:22]} 24. Nxc7 {[%emt 0:00:02]} e6 {[%emt 0:04:03]} 25. Bxf8 {[%emt 0:03:00]} Rxf8 {[%emt 0:00:04]} 26. Qxa5 {[%emt 0:00:30]} Nd6 {[%emt 0:06:10]} 27. b4 {[%emt 0:03:23]} Qd7 {[%emt 0:01:17]} 28. b5 {[%emt 0:00:29]} e5 {[%emt 0:00:37]} 29. dxe5 {[%emt 0:00:44]} fxe5 {[%emt 0:00:25]} 30. b6 {[%emt 0:00:54]} Bh3 {[%emt 0:00:43]} 31. Qd5+ {[%emt 0:00:41]} Rf7 {[%emt 0:00:02]} 32. Bxh3 {[%emt 0:02:24]} Qxh3 {[%emt 0:00:02]} 33. Qxd6 {[%emt 0:00:33]} Qg4+ {[%emt 0:00:27]} 34. Kf1 {[%emt 0:00:07]} Qh3+ {[%emt 0:00:51]} 35. Ke1 {[%emt 0:00:16]} Qxh2 {[%emt 0:00:06]} 36. Qd8+ {[%emt 0:00:24]} Rf8 {[%emt 0:00:05]} 37. Qd5+ {[%emt 0:00:04]} Rf7 {[%emt 0:00:02]} 38. Qd8+ {[%emt 0:00:24]} Rf8 {[%emt 0:00:05]} 39. Qd5+ {[%emt 0:00:05]} Rf7 {[%emt 0:00:02]} 40. Rc2 {[%emt 0:02:13]} Qg1+ {[%emt 0:00:23]} 41. Kd2 {[%emt 0:01:01]} Qxf2+ {[%emt 0:00:55]} 42. Kd3 {[%emt 0:03:32]} e4+ {[%emt 0:09:09]} 43. Qxe4 {[%emt 0:06:11]} Qf1+ {[%emt 0:00:26]} 44. Kc3 {[%emt 0:01:07]} Qa1+ {[%emt 0:01:42]} 45. Kb4 {[%emt 0:03:11]} Qb1+ {[%emt 0:03:53]} 46. Kc5 {[%emt 0:03:40]} Rf5+ {[%emt 0:01:31]} 47. Nd5 {[%emt 0:00:19]} Qb3 {[%emt 0:12:34]} 48. Kd6 {[%emt 0:02:34]} Qa3+ {[%emt 0:00:35]} 49. Ke6 {[%emt 0:01:37]} Qb3 {[%emt 0:02:09]} 50. Rc8+ {[%emt 0:01:23]} Kg7 {[%emt 0:00:03]} 51. Rc7+ {[%emt 0:01:13]} Kh6 {[%emt 0:01:45]} 52. Qh4+ {[%emt 0:00:31]} Rh5 {[%emt 0:00:04]} 53. Qf4+ {[%emt 0:00:06]} Rg5 {[%emt 0:00:07]} 54. Qf8+ {[%emt 0:00:11]} 1-0

[Event "EICC 2025"]
[Site "Eforie-Nord"]
[Date "2025.03.15"]
[Round "1.39"]
[White "Gov, Guy"]
[Black "Ivanchuk, Vasyl"]
[Result "0-1"]
[Annotator "TA"]
[ECO "C08"]
[WhiteElo "2281"]
[BlackElo "2604"]
[PlyCount "100"]
[EventDate "2025.03.14"]
[EventType "swiss"]
[EventCountry "ROU"]
[SourceTitle "playchess.com"]
[Source "ChessBase"]
[SourceQuality "1"]
[TimeControl "40/5400+30:1800+30"]

{[%evp 12,100,28,23,26,23,27,10,15,-6,4,1,5,-6,0,0,16,0,9,0,19,6,29,18,10,19,33,37,39,35,41,0,0,0,0,0,0,-3,0,0,0,0,13,8,5,0,8,34,33,0,0,0,0,0,0,-12831,-12749,-5093,-2184,-29970,-29971,-29971,-29973,-29968,-29974,-29974,-29975,-29975,-29976,-29977,-29978,-29977,-29979,-29979,-29980,-29980,-29981,-29982,-29983,-29983,-29984,-29984,-29985,-29985,-29986,-29986,-29986,-29988,-29989,-29992,-29993]} 1. e4 {[%emt 0:00:03]} e6 {[%emt 0:00:11]} 2. d4 {[%emt 0:00:05]} d5 {[%emt 0:00:03]} 3. Nd2 {[%emt 0:00:08]} c5 {[%emt 0:00:12]} 4. exd5 {[%emt 0:00:10]} exd5 {[%emt 0:00:24]} 5. Ngf3 {[%emt 0:00:10]} a6 {[%emt 0:00:07]} 6. dxc5 {[%emt 0:00:58]} Bxc5 {[%emt 0:00:11]} 7. Bd3 {[%emt 0:02:07]} Qe7+ {[%emt 0:02:25] C08: French Tarrasch: 3...c5 4 exd5 exd5 sidelines.} 8. Qe2 {[%emt 0:00:07]} Nc6 {[%emt 0:00:27]} 9. a3 {[%emt 0:15:41]} Qxe2+ {[%emt 0:16:55] The position is equal.} 10. Bxe2 {[%emt 0:00:07]} Nge7 $146 {[%emt 0:06:02]} (10... Nf6 11. O-O O-O 12. Nb3 Ba7 13. Bf4 Re8 14. Bd3 Ng4 15. h3 Nf6 16. Rfe1 Bd7 {½-½ Topalov,M (1936)-Andersen,J (2160) Blankenese op 2nd 2018 (7.8)}) 11. Nb3 {[%emt 0:15:57]} Ba7 {[%emt 0:00:50]} 12. O-O {[%emt 0:05:18]} O-O {[%emt 0:05:06]} 13. Bf4 {[%emt 0:07:53]} Rd8 {[%emt 0:01:41]} 14. Rad1 {[%emt 0:00:23]} Bf5 {[%emt 0:00:12]} 15. Rd2 {[%emt 0:02:05]} h6 {[%emt 0:01:29]} 16. Rfd1 {[%emt 0:05:26]} g5 {[%emt 0:00:00]} 17. Be3 {[%emt 0:03:59]} Bxe3 {[%emt 0:00:12]} 18. fxe3 {[%emt 0:00:05]} b6 {[%emt 0:03:19]} 19. Nbd4 {[%emt 0:11:31]} Be4 {[%emt 0:01:28]} 20. Nxc6 {[%emt 0:00:49]} Nxc6 {[%emt 0:00:02]} 21. c4 {[%emt 0:00:02]} dxc4 {[%emt 0:00:50]} 22. Rxd8+ {[%emt 0:01:10]} Rxd8 {[%emt 0:00:47]} 23. Rxd8+ {[%emt 0:00:07]} Nxd8 {[%emt 0:00:04]} 24. Bxc4 {[%emt 0:00:10]} Bxf3 {[%emt 0:04:46]} 25. gxf3 $11 {[%emt 0:00:06][%mdl 4096] Endgame KB-KN} a5 {[%emt 0:00:02]} 26. Kf2 {[%emt 0:03:42]} Kf8 {[%emt 0:01:41]} 27. Ke2 {[%emt 0:01:24]} Ke7 {[%emt 0:03:57]} 28. Kd3 {[%emt 0:00:25]} Nb7 {[%emt 0:00:02]} 29. Kd4 {[%emt 0:06:32]} Nd6 {[%emt 0:00:10]} 30. Kd5 {[%emt 0:08:46]} Nxc4 {[%emt 0:02:34]} 31. Kxc4 {[%emt 0:00:01] [#] Kd5 is the strong threat. KP-KP} Kd6 {[%emt 0:00:05] Hoping for ...a4.} 32. Kb5 {[%emt 0:03:17]} f5 {[%emt 0:18:53]} 33. Kxb6 $2 {[%emt 0:01:22][%mdl 8192] White is on the road to losing.} (33. b4 $11 axb4 34. axb4) 33... a4 $19 {[%emt 0:11:30] ( -> ...g4)} 34. Kb5 {[%emt 0:02:38]} g4 {[%emt 0:00:11]} 35. fxg4 {[%emt 0:00:47]} fxg4 {[%emt 0:00:02] Black mates.} 36. Kc4 {[%emt 0:01:04]} Ke5 {[%emt 0:00:58]} 37. Kd3 {[%emt 0:01:08]} h5 {[%emt 0:02:38]} 38. Ke2 {[%emt 0:03:11]} Ke4 {[%emt 0:11:22]} 39. Kf2 {[%emt 0:00:05] [#]} h4 $1 {[%emt 0:00:07]} ({Worse is} 39... Kd3 40. Kg3 Kxe3 41. Kh4 $11) 40. Ke2 {[%emt 0:00:08]} g3 {[%emt 0:03:35]} 41. h3 {[%emt 0:06:19]} g2 {[%emt 0:09:18]} 42. Kf2 {[%emt 0:00:07]} g1=Q+ {[%emt 0:01:04]} 43. Kxg1 {[%emt 0:00:05]} Kxe3 {[%emt 0:00:05] K3P-KPP. White is a pawn up.} 44. Kf1 {[%emt 0:02:13]} Kf3 {[%emt 0:02:49]} 45. Ke1 {[%emt 0:01:12]} Kg3 {[%emt 0:00:13]} 46. Ke2 {[%emt 0:00:08]} Kxh3 {[%emt 0:00:43]} 47. Kf3 {[%emt 0:00:39]} Kh2 {[%emt 0:00:08]} 48. Kf2 {[%emt 0:00:05]} h3 {[%emt 0:00:37]} 49. Kf1 {[%emt 0:00:23]} Kg3 {[%emt 0:00:07]} 50. Kg1 {[%emt 0:00:04]} h2+ {[%emt 0:02:15] Weighted Error Value: White=0.24 (precise) /Black=0.03 (flawless)   Loses game:     	White=1     	---        Inaccurate:     	White=2     	---        OK:         	White=10    	Black=6      Best:        	---       	Black=4} 0-1